[Event "*** MasterClass Titled Tuesday Blitz"]
[Site "Chess.com"]
[Date "2017.09.05"]
[Round "3"]
[White "gmjlh"]
[Black "jk13"]
[Result "0-1"]
[WhiteElo "2578"]
[BlackElo "2420"]
[TimeControl "180+2"]
[EndTime "13:43:57 PDT"]
[Termination "jk13 won by checkmate"]

1. c4 {[%clk 0:03:01.9]} 1... e6 {[%clk 0:03:00.8]} 2. Nf3 {[%clk 0:03:01.7]}
2... Nf6 {[%clk 0:03:02]} 3. b3 {[%clk 0:03:01.7]} 3... d5 {[%clk 0:03:02.9]} 4.
Bb2 {[%clk 0:03:02.4]} 4... a5 {[%clk 0:03:04.5]} 5. Nc3 {[%clk 0:03:01.6]} 5...
Be7 {[%clk 0:03:05.3]} 6. g3 {[%clk 0:03:01.2]} 6... O-O {[%clk 0:03:06.7]} 7.
Bg2 {[%clk 0:03:01.9]} 7... c6 {[%clk 0:03:02.9]} 8. O-O {[%clk 0:03:01.8]} 8...
Nbd7 {[%clk 0:03:04.5]} 9. Rc1 {[%clk 0:02:56.3]} 9... Bb4 {[%clk 0:03:02.3]}
10. a3 {[%clk 0:02:55.5]} 10... Bd6 {[%clk 0:03:03.3]} 11. d4 {[%clk 0:02:55.1]}
11... Qe7 {[%clk 0:03:04.3]} 12. Nb1 {[%clk 0:02:43.3]} 12... b6 {[%clk
0:03:02.3]} 13. Nfd2 {[%clk 0:02:13.4]} 13... Bb7 {[%clk 0:02:39.7]} 14. Re1
{[%clk 0:02:14.5]} 14... c5 {[%clk 0:02:14.7]} 15. cxd5 {[%clk 0:02:14.5]} 15...
exd5 {[%clk 0:02:13.1]} 16. a4 {[%clk 0:02:12]} 16... Rac8 {[%clk 0:02:09.3]}
17. Nc3 {[%clk 0:02:12.1]} 17... Rfe8 {[%clk 0:02:08.3]} 18. Nb5 {[%clk
0:02:11.4]} 18... Bb8 {[%clk 0:02:08.8]} 19. e3 {[%clk 0:02:10.9]} 19... Ne4
{[%clk 0:02:00.1]} 20. Nxe4 {[%clk 0:02:03.1]} 20... dxe4 {[%clk 0:02:01.1]} 21.
Bh3 {[%clk 0:02:03.3]} 21... Rcd8 {[%clk 0:01:55.5]} 22. Ba3 {[%clk 0:01:54.8]}
22... Ne5 {[%clk 0:01:49.1]} 23. Re2 {[%clk 0:01:30.7]} 23... Nf3+ {[%clk
0:01:42.3]} 24. Kh1 {[%clk 0:01:31.3]} 24... Qg5 {[%clk 0:01:41.5]} 25. Bg2
{[%clk 0:01:26.2]} 25... Qh6 {[%clk 0:01:19.4]} 26. Bxf3 {[%clk 0:01:19]} 26...
exf3 {[%clk 0:01:21.3]} 27. Rd2 {[%clk 0:01:19.8]} 27... cxd4 {[%clk 0:01:09.3]}
28. Rxd4 {[%clk 0:01:18]} 28... Bxg3 {[%clk 0:00:50.1]} 29. Qg1 {[%clk
0:01:09.5]} 29... Be5 {[%clk 0:00:38.8]} 30. Bb2 {[%clk 0:01:09.5]} 30... Bxd4
{[%clk 0:00:32.5]} 31. Bxd4 {[%clk 0:01:11.4]} 31... Bd5 {[%clk 0:00:27.5]} 32.
Nc7 {[%clk 0:01:00.1]} 32... Rf8 {[%clk 0:00:19.6]} 33. Qg4 {[%clk 0:00:52.8]}
33... Bb7 {[%clk 0:00:16.9]} 34. Rg1 {[%clk 0:00:52.1]} 34... g6 {[%clk
0:00:16.1]} 35. Bxb6 {[%clk 0:00:17.4]} 35... Rd2 {[%clk 0:00:14.5]} 36. e4
{[%clk 0:00:15.7]} 36... Re2 {[%clk 0:00:13.8]} 37. Nd5 {[%clk 0:00:10.7]} 37...
Bxd5 {[%clk 0:00:13.1]} 38. exd5 {[%clk 0:00:12.6]} 38... Qd2 {[%clk 0:00:11.7]}
39. Qxf3 {[%clk 0:00:12.4]} 39... Re5 {[%clk 0:00:12.3]} 40. Rd1 {[%clk
0:00:11.8]} 40... Qc2 {[%clk 0:00:10.2]} 41. d6 {[%clk 0:00:04.6]} 41... Rf5
{[%clk 0:00:10.3]} 42. Qd3 {[%clk 0:00:02.6]} 42... Qc6+ {[%clk 0:00:11.6]} 43.
Kg1 {[%clk 0:00:03.7]} 43... Qxb6 {[%clk 0:00:13.1]} 44. d7 {[%clk 0:00:05]}
44... Qxf2+ {[%clk 0:00:13.9]} 45. Kh1 {[%clk 0:00:05.7]} 45... Rd8 {[%clk
0:00:15.4]} 46. Qe4 {[%clk 0:00:06.8]} 46... Qf3+ {[%clk 0:00:16.3]} 47. Qxf3
{[%clk 0:00:07.5]} 47... Rxf3 {[%clk 0:00:18.2]} 48. Kg2 {[%clk 0:00:08.6]}
48... Rxb3 {[%clk 0:00:19.2]} 49. Rd5 {[%clk 0:00:09]} 49... Rb7 {[%clk
0:00:20.5]} 50. Kg3 {[%clk 0:00:08.3]} 50... Rbxd7 {[%clk 0:00:22.4]} 51. Rxa5
{[%clk 0:00:08.6]} 51... Rd3+ {[%clk 0:00:23.5]} 52. Kf4 {[%clk 0:00:09.3]}
52... R8d4+ {[%clk 0:00:25.4]} 53. Ke5 {[%clk 0:00:10.3]} 53... Rh4 {[%clk
0:00:26.9]} 54. Kf6 {[%clk 0:00:11.1]} 54... Rf3+ {[%clk 0:00:27.9]} 55. Kg5
{[%clk 0:00:11.9]} 55... Rh5+ {[%clk 0:00:28.9]} 56. Kg4 {[%clk 0:00:13.5]}
56... Rxa5 {[%clk 0:00:30.8]} 57. h4 {[%clk 0:00:15.4]} 57... Rb3 {[%clk
0:00:31.2]} 58. h5 {[%clk 0:00:16.5]} 58... Rxa4+ {[%clk 0:00:32.2]} 59. Kg5
{[%clk 0:00:17.1]} 59... Rb5+ {[%clk 0:00:33.8]} 60. Kf6 {[%clk 0:00:16.6]}
60... Rxh5 {[%clk 0:00:35.7]} 61. Ke7 {[%clk 0:00:17.2]} 61... Rf5 {[%clk
0:00:36.7]} 62. Kd7 {[%clk 0:00:17.4]} 62... Re4 {[%clk 0:00:38.7]} 63. Kd6
{[%clk 0:00:18.6]} 63... Rf1 {[%clk 0:00:39.6]} 64. Kc6 {[%clk 0:00:20.5]} 64...
Re2 {[%clk 0:00:41.1]} 65. Kd7 {[%clk 0:00:22.4]} 65... Rd1+ {[%clk 0:00:42.9]}
66. Kc6 {[%clk 0:00:23.3]} 66... Rc2+ {[%clk 0:00:44.9]} 67. Kb5 {[%clk
0:00:25.2]} 67... Rb1+ {[%clk 0:00:46.4]} 68. Ka4 {[%clk 0:00:27.1]} 68... Ra2#
{[%clk 0:00:48]} 0-1

[Event "*** MasterClass Titled Tuesday Blitz"]
[Site "Chess.com"]
[Date "2017.09.05"]
[Round "3"]
[White "Robin-Side"]
[Black "PlotnikovPavel"]
[Result "0-1"]
[WhiteElo "2296"]
[BlackElo "2469"]
[TimeControl "180+2"]
[EndTime "13:43:58 PDT"]
[Termination "PlotnikovPavel won by resignation"]

1. e4 {[%clk 0:03:01.9]} 1... e6 {[%clk 0:03:01.2]} 2. d4 {[%clk 0:03:02.2]}
2... d5 {[%clk 0:03:02.6]} 3. Nd2 {[%clk 0:03:03.1]} 3... Be7 {[%clk 0:03:02.9]}
4. Bd3 {[%clk 0:02:58.3]} 4... dxe4 {[%clk 0:03:03.2]} 5. Nxe4 {[%clk
0:02:57.9]} 5... Nf6 {[%clk 0:03:03.3]} 6. Nf3 {[%clk 0:02:55]} 6... O-O {[%clk
0:03:03.6]} 7. O-O {[%clk 0:02:54.9]} 7... Nbd7 {[%clk 0:03:05]} 8. c3 {[%clk
0:02:51.8]} 8... b6 {[%clk 0:03:05.4]} 9. Ne5 {[%clk 0:02:30.7]} 9... Bb7 {[%clk
0:02:57.1]} 10. Qf3 {[%clk 0:02:27.8]} 10... Nxe5 {[%clk 0:02:47.1]} 11. dxe5
{[%clk 0:02:16.2]} 11... Nxe4 {[%clk 0:02:46.4]} 12. Bxe4 {[%clk 0:02:16.3]}
12... Bxe4 {[%clk 0:02:47.7]} 13. Qxe4 {[%clk 0:02:17.9]} 13... Qd7 {[%clk
0:02:35.5]} 14. Be3 {[%clk 0:02:15.8]} 14... Rfd8 {[%clk 0:02:36]} 15. Qc2
{[%clk 0:02:11.4]} 15... Qd3 {[%clk 0:02:34.6]} 16. Qxd3 {[%clk 0:02:02]} 16...
Rxd3 {[%clk 0:02:36.5]} 17. Rfd1 {[%clk 0:02:03.1]} 17... Rad8 {[%clk
0:02:37.1]} 18. Rxd3 {[%clk 0:02:03.8]} 18... Rxd3 {[%clk 0:02:38.3]} 19. Kf1
{[%clk 0:02:03.6]} 19... c5 {[%clk 0:02:35.6]} 20. Ke2 {[%clk 0:01:54.1]} 20...
Rd5 {[%clk 0:02:36.7]} 21. f4 {[%clk 0:01:45.5]} 21... g5 {[%clk 0:02:37]} 22.
g3 {[%clk 0:01:42.3]} 22... Kg7 {[%clk 0:02:37]} 23. h3 {[%clk 0:01:37.9]} 23...
Kg6 {[%clk 0:02:34.9]} 24. a4 {[%clk 0:01:32.2]} 24... a6 {[%clk 0:02:33.6]} 25.
c4 {[%clk 0:01:24.9]} 25... Rd7 {[%clk 0:02:24.9]} 26. fxg5 {[%clk 0:01:03.7]}
26... Bxg5 {[%clk 0:02:23.9]} 27. Bxg5 {[%clk 0:01:04.8]} 27... Kxg5 {[%clk
0:02:24.8]} 28. Rf1 {[%clk 0:01:06]} 28... Kg6 {[%clk 0:02:20.9]} 29. b3 {[%clk
0:01:03.7]} 29... Rd4 {[%clk 0:02:17.4]} 30. Rf6+ {[%clk 0:01:03]} 30... Kg7
{[%clk 0:02:17.5]} 31. Ke3 {[%clk 0:00:55.7]} 31... Rd1 {[%clk 0:02:15.2]} 32.
Rf3 {[%clk 0:00:55.1]} 32... h5 {[%clk 0:02:05.1]} 33. Kf4 {[%clk 0:00:40.4]}
33... Kg6 {[%clk 0:02:05]} 34. h4 {[%clk 0:00:32.8]} 34... Re1 {[%clk
0:01:34.7]} 35. Rf2 {[%clk 0:00:14.6]} 35... f6 {[%clk 0:01:28.4]} 36. exf6
{[%clk 0:00:13]} 36... Kxf6 {[%clk 0:01:30.3]} 37. g4 {[%clk 0:00:12]} 37...
hxg4 {[%clk 0:01:27]} 38. Kxg4+ {[%clk 0:00:12.5]} 38... Ke5 {[%clk 0:01:28.5]}
39. h5 {[%clk 0:00:11.8]} 39... Rg1+ {[%clk 0:01:28.3]} 40. Kh3 {[%clk
0:00:10.5]} 40... Rh1+ {[%clk 0:01:29.3]} 41. Kg4 {[%clk 0:00:10.2]} 41... Kd4
{[%clk 0:01:26.3]} 42. Rf3 {[%clk 0:00:07.5]} 42... e5 {[%clk 0:01:26.5]} 43.
Rh3 {[%clk 0:00:06.7]} 43... Rg1+ {[%clk 0:01:27]} 44. Kf3 {[%clk 0:00:07.3]}
44... e4+ {[%clk 0:01:27.7]} 45. Kf2 {[%clk 0:00:06.7]} 45... Rg8 {[%clk
0:01:27.4]} 46. h6 {[%clk 0:00:07.9]} 46... Rf8+ {[%clk 0:01:04.6]} 47. Ke2
{[%clk 0:00:08.2]} 47... Rh8 {[%clk 0:01:03.6]} 48. h7 {[%clk 0:00:08.9]} 48...
a5 {[%clk 0:01:04.6]} 49. Kd2 {[%clk 0:00:08.8]} 49... e3+ {[%clk 0:01:02.8]}
50. Ke2 {[%clk 0:00:09.9]} 50... Kc3 {[%clk 0:01:00.1]} 51. Rxe3+ {[%clk
0:00:10.8]} 51... Kc2 {[%clk 0:01:00.7]} 52. Rh3 {[%clk 0:00:11.8]} 52... Re8+
{[%clk 0:01:01.2]} 53. Kf2 {[%clk 0:00:12.7]} 53... Rh8 {[%clk 0:01:02.2]} 54.
Kg2 {[%clk 0:00:13.6]} 54... Kb2 {[%clk 0:01:01.9]} 55. Rh4 {[%clk 0:00:05.2]}
55... Kxb3 {[%clk 0:01:01.9]} 56. Kg3 {[%clk 0:00:06.5]} 56... Kxa4 {[%clk
0:01:02.7]} 57. Kg4 {[%clk 0:00:07.4]} 57... Kb4 {[%clk 0:01:02.3]} 58. Kg5
{[%clk 0:00:08.8]} 58... a4 {[%clk 0:01:03.6]} 59. Kg6 {[%clk 0:00:10.3]} 59...
a3 {[%clk 0:01:04.6]} 60. Kg7 {[%clk 0:00:11]} 60... Rxh7+ {[%clk 0:01:05.2]}
61. Kxh7 {[%clk 0:00:11.5]} 61... a2 {[%clk 0:01:06.6]} 62. Rh1 {[%clk
0:00:11.8]} 62... Kxc4 {[%clk 0:01:08]} 63. Kg6 {[%clk 0:00:12.4]} 63... b5
{[%clk 0:01:08.7]} 64. Kf5 {[%clk 0:00:13.6]} 64... b4 {[%clk 0:01:10]} 65. Ke4
{[%clk 0:00:15]} 65... b3 {[%clk 0:01:11.3]} 66. Rc1+ {[%clk 0:00:14.9]} 66...
Kb4 {[%clk 0:01:12.6]} 67. Kd3 {[%clk 0:00:15.5]} 67... b2 {[%clk 0:01:10.6]}
68. Rc4+ {[%clk 0:00:15.6]} 68... Kb5 {[%clk 0:01:11.6]} 0-1

[Event "*** MasterClass Titled Tuesday Blitz"]
[Site "Chess.com"]
[Date "2017.09.05"]
[Round "3"]
[White "AbdAlAgathos"]
[Black "Witik"]
[Result "0-1"]
[WhiteElo "2350"]
[BlackElo "2517"]
[TimeControl "180+2"]
[EndTime "13:44:34 PDT"]
[Termination "Witik won by resignation"]

1. e4 {[%clk 0:03:01.1]} 1... c6 {[%clk 0:02:59.6]} 2. d4 {[%clk 0:03:01.6]}
2... d5 {[%clk 0:03:01.1]} 3. exd5 {[%clk 0:03:03.5]} 3... cxd5 {[%clk 0:03:02]}
4. c4 {[%clk 0:03:05.1]} 4... Nf6 {[%clk 0:03:02.7]} 5. Nc3 {[%clk 0:03:06.6]}
5... e6 {[%clk 0:03:00.4]} 6. Nf3 {[%clk 0:03:06.7]} 6... Be7 {[%clk 0:03:01.1]}
7. Bd3 {[%clk 0:03:02.4]} 7... dxc4 {[%clk 0:02:59.2]} 8. Bxc4 {[%clk
0:03:04.3]} 8... O-O {[%clk 0:02:59.9]} 9. O-O {[%clk 0:03:04.4]} 9... Nc6
{[%clk 0:02:47.6]} 10. a3 {[%clk 0:03:00.3]} 10... b6 {[%clk 0:02:40.3]} 11. Bg5
{[%clk 0:02:31.7]} 11... Bb7 {[%clk 0:02:37.9]} 12. Qd3 {[%clk 0:02:27]} 12...
g6 {[%clk 0:02:33.9]} 13. Rad1 {[%clk 0:02:20.7]} 13... Nh5 {[%clk 0:02:18.7]}
14. Bh6 {[%clk 0:02:16.1]} 14... Ng7 {[%clk 0:02:14.9]} 15. d5 {[%clk
0:02:12.4]} 15... exd5 {[%clk 0:02:15.4]} 16. Nxd5 {[%clk 0:02:03.1]} 16... Bf6
{[%clk 0:02:06.4]} 17. Nxf6+ {[%clk 0:01:57.7]} 17... Qxf6 {[%clk 0:02:06.7]}
18. b4 {[%clk 0:01:33.7]} 18... Rfd8 {[%clk 0:01:57.1]} 19. Bg5 {[%clk 0:01:19]}
19... Rxd3 {[%clk 0:01:55.4]} 20. Bxf6 {[%clk 0:01:20.2]} 20... Rxd1 {[%clk
0:01:54.5]} 21. Rxd1 {[%clk 0:01:21.6]} 21... Ne8 {[%clk 0:01:52.3]} 22. Bh4
{[%clk 0:01:02.9]} 22... Rc8 {[%clk 0:01:49.8]} 23. Rd7 {[%clk 0:01:00.7]} 23...
Nb8 {[%clk 0:01:32.4]} 24. Rxb7 {[%clk 0:00:38.9]} 24... Rxc4 {[%clk 0:01:32.9]}
25. h3 {[%clk 0:00:36.1]} 25... Nc6 {[%clk 0:01:31.6]} 26. Bg3 {[%clk
0:00:32.9]} 26... f6 {[%clk 0:01:24.5]} 27. b5 {[%clk 0:00:29.1]} 27... Na5
{[%clk 0:01:22.8]} 28. Rxa7 {[%clk 0:00:30.1]} 28... Re4 {[%clk 0:01:17]} 29.
Kh2 {[%clk 0:00:26.9]} 29... g5 {[%clk 0:01:12.9]} 30. Nd2 {[%clk 0:00:18.3]}
30... Re2 {[%clk 0:01:07.5]} 31. Nf3 {[%clk 0:00:19.2]} 31... Nc4 {[%clk
0:01:05]} 32. a4 {[%clk 0:00:19.6]} 32... Ng7 {[%clk 0:01:01.3]} 33. Bc7 {[%clk
0:00:17.8]} 33... Ne6 {[%clk 0:00:59.5]} 34. a5 {[%clk 0:00:17.5]} 34... Nxc7
{[%clk 0:00:57.6]} 35. Rxc7 {[%clk 0:00:19.4]} 35... Nxa5 {[%clk 0:00:56.3]} 36.
Kg3 {[%clk 0:00:19.1]} 36... h5 {[%clk 0:00:52.6]} 37. Nd4 {[%clk 0:00:19.4]}
37... Rb2 {[%clk 0:00:49.8]} 38. Nf5 {[%clk 0:00:19.7]} 38... Rxb5 {[%clk
0:00:47.8]} 39. Nh6+ {[%clk 0:00:20.6]} 39... Kf8 {[%clk 0:00:48.7]} 40. Rf7+
{[%clk 0:00:21.3]} 40... Ke8 {[%clk 0:00:49]} 41. Rxf6 {[%clk 0:00:22.5]} 41...
Rb3+ {[%clk 0:00:45.9]} 42. f3 {[%clk 0:00:24]} 42... Nc4 {[%clk 0:00:45.5]} 43.
Rg6 {[%clk 0:00:23.7]} 43... h4+ {[%clk 0:00:41.5]} 44. Kh2 {[%clk 0:00:21.3]}
44... Rb5 {[%clk 0:00:41.8]} 45. Ng4 {[%clk 0:00:21.2]} 45... Kf7 {[%clk
0:00:37.4]} 46. Rc6 {[%clk 0:00:21.4]} 46... Nd2 {[%clk 0:00:29.9]} 47. Kg1
{[%clk 0:00:19.8]} 47... Rb2 {[%clk 0:00:28.8]} 48. Ne5+ {[%clk 0:00:19.5]}
48... Ke7 {[%clk 0:00:29.9]} 49. Ng6+ {[%clk 0:00:16.8]} 49... Kd7 {[%clk
0:00:28.7]} 50. Ne5+ {[%clk 0:00:18.3]} 50... Kd8 {[%clk 0:00:29.6]} 51. Rg6
{[%clk 0:00:18.4]} 51... b5 {[%clk 0:00:30.4]} 52. Rxg5 {[%clk 0:00:18.8]} 52...
b4 {[%clk 0:00:30.7]} 53. Nc6+ {[%clk 0:00:19.9]} 53... Kc7 {[%clk 0:00:29]} 54.
Nd4 {[%clk 0:00:19.6]} 54... b3 {[%clk 0:00:30.1]} 55. Rb5 {[%clk 0:00:20.5]}
55... Kd7 {[%clk 0:00:25.2]} 56. f4 {[%clk 0:00:19.7]} 56... Rb1+ {[%clk
0:00:23.8]} 57. Kf2 {[%clk 0:00:20.6]} 57... b2 {[%clk 0:00:25]} 58. Ne2 {[%clk
0:00:12.6]} 58... Rf1+ {[%clk 0:00:22.7]} 59. Ke3 {[%clk 0:00:12.6]} 59... b1=Q
{[%clk 0:00:23.7]} 60. Rxb1 {[%clk 0:00:14.5]} 60... Nxb1 {[%clk 0:00:24]} 61.
Nd4 {[%clk 0:00:15.6]} 61... Nc3 {[%clk 0:00:23.5]} 62. f5 {[%clk 0:00:16.1]}
62... Kd6 {[%clk 0:00:23.5]} 63. Nf3 {[%clk 0:00:12.6]} 63... Nd5+ {[%clk
0:00:22.4]} 64. Ke4 {[%clk 0:00:13.9]} 64... Rf2 {[%clk 0:00:23]} 65. Nxh4
{[%clk 0:00:14.5]} 65... Rf4+ {[%clk 0:00:23.1]} 0-1

[Event "*** MasterClass Titled Tuesday Blitz"]
[Site "Chess.com"]
[Date "2017.09.05"]
[Round "3"]
[White "Sanan_Sjugirov"]
[Black "johnathan113"]
[Result "0-1"]
[WhiteElo "2643"]
[BlackElo "2509"]
[TimeControl "180+2"]
[EndTime "13:44:46 PDT"]
[Termination "johnathan113 won by resignation"]

1. d4 {[%clk 0:03:01.9]} 1... Nf6 {[%clk 0:03:00.8]} 2. c4 {[%clk 0:03:00.4]}
2... g6 {[%clk 0:03:02.1]} 3. g3 {[%clk 0:02:56.1]} 3... Bg7 {[%clk 0:03:03.3]}
4. Bg2 {[%clk 0:02:57.2]} 4... O-O {[%clk 0:03:04.3]} 5. Nc3 {[%clk 0:02:57.4]}
5... d6 {[%clk 0:03:05.4]} 6. Nf3 {[%clk 0:02:57.9]} 6... Nc6 {[%clk 0:03:06.4]}
7. O-O {[%clk 0:02:58.1]} 7... a6 {[%clk 0:03:07.9]} 8. e3 {[%clk 0:02:47.4]}
8... Rb8 {[%clk 0:03:06.9]} 9. Qe2 {[%clk 0:02:48.4]} 9... e5 {[%clk 0:03:02.9]}
10. Rd1 {[%clk 0:02:47.2]} 10... e4 {[%clk 0:02:53.9]} 11. Nd2 {[%clk
0:02:40.1]} 11... Bg4 {[%clk 0:02:51.6]} 12. f3 {[%clk 0:02:40.6]} 12... exf3
{[%clk 0:02:53.1]} 13. Nxf3 {[%clk 0:02:34.9]} 13... Re8 {[%clk 0:02:53.3]} 14.
h3 {[%clk 0:02:23.3]} 14... Bf5 {[%clk 0:02:52.9]} 15. Qf2 {[%clk 0:02:13.2]}
15... Qd7 {[%clk 0:02:46.2]} 16. g4 {[%clk 0:02:12.8]} 16... Ne4 {[%clk
0:02:43.9]} 17. Nxe4 {[%clk 0:02:11.2]} 17... Bxe4 {[%clk 0:02:45.8]} 18. Bd2
{[%clk 0:02:05.6]} 18... d5 {[%clk 0:02:23.7]} 19. b3 {[%clk 0:01:51.1]} 19...
dxc4 {[%clk 0:02:12.5]} 20. bxc4 {[%clk 0:01:51.4]} 20... b5 {[%clk 0:02:14.2]}
21. cxb5 {[%clk 0:01:46.5]} 21... axb5 {[%clk 0:02:15.1]} 22. Rac1 {[%clk
0:01:44.3]} 22... Qd5 {[%clk 0:02:06.3]} 23. Ne1 {[%clk 0:01:29.9]} 23... Ne7
{[%clk 0:01:37.2]} 24. Bxe4 {[%clk 0:01:19.6]} 24... Qxe4 {[%clk 0:01:37.3]} 25.
Rxc7 {[%clk 0:01:21]} 25... f5 {[%clk 0:01:32]} 26. gxf5 {[%clk 0:01:04.6]}
26... Nxf5 {[%clk 0:01:33]} 27. Ng2 {[%clk 0:00:56.4]} 27... Ra8 {[%clk
0:01:29.6]} 28. Bb4 {[%clk 0:00:37.4]} 28... Ra6 {[%clk 0:01:05.2]} 29. a3
{[%clk 0:00:32.3]} 29... Rf6 {[%clk 0:01:06]} 30. Qc2 {[%clk 0:00:29.9]} 30...
Qf3 {[%clk 0:00:56.4]} 31. Rf1 {[%clk 0:00:22.9]} 31... Qxf1+ {[%clk 0:00:51.6]}
32. Kxf1 {[%clk 0:00:23.7]} 32... Nxe3+ {[%clk 0:00:53.3]} 33. Kg1 {[%clk
0:00:24.3]} 33... Nxc2 {[%clk 0:00:50.7]} 34. Rxc2 {[%clk 0:00:26.2]} 34... Rf3
{[%clk 0:00:46.2]} 35. Rd2 {[%clk 0:00:25.5]} 35... Rxh3 {[%clk 0:00:44.3]} 36.
d5 {[%clk 0:00:26.5]} 36... Bc3 {[%clk 0:00:43]} 37. Bxc3 {[%clk 0:00:25.1]}
37... Rxc3 {[%clk 0:00:44.9]} 38. d6 {[%clk 0:00:27]} 38... Rd8 {[%clk
0:00:43.6]} 39. Nf4 {[%clk 0:00:25]} 39... Rc6 {[%clk 0:00:41.1]} 40. d7 {[%clk
0:00:25.3]} 40... Rc7 {[%clk 0:00:35.6]} 41. Nd5 {[%clk 0:00:26.3]} 41... Rc1+
{[%clk 0:00:29.2]} 42. Kg2 {[%clk 0:00:27.7]} 42... Kf7 {[%clk 0:00:30.9]} 43.
Nb6 {[%clk 0:00:26.6]} 43... Rc6 {[%clk 0:00:30.8]} 44. Nc8 {[%clk 0:00:24]}
44... Ke6 {[%clk 0:00:23.7]} 45. Na7 {[%clk 0:00:23.3]} 45... Rd6 {[%clk
0:00:21.5]} 46. Re2+ {[%clk 0:00:21.4]} 46... Kxd7 {[%clk 0:00:22.6]} 47. Nxb5
{[%clk 0:00:22.3]} 47... Rd5 {[%clk 0:00:23.3]} 48. Nc3 {[%clk 0:00:22.7]} 48...
Rd3 {[%clk 0:00:24]} 49. Ne4 {[%clk 0:00:23.9]} 49... Rxa3 {[%clk 0:00:19.9]}
50. Nf6+ {[%clk 0:00:24.9]} 50... Kc8 {[%clk 0:00:19.6]} 51. Nxh7 {[%clk
0:00:25.7]} 51... Rad3 {[%clk 0:00:15.3]} 52. Re6 {[%clk 0:00:17.1]} 52... R3d6
{[%clk 0:00:13.5]} 53. Re5 {[%clk 0:00:14]} 53... Rd5 {[%clk 0:00:13.7]} 54. Re6
{[%clk 0:00:14.5]} 54... R8d6 {[%clk 0:00:14]} 55. Re7 {[%clk 0:00:12.7]} 55...
Rb5 {[%clk 0:00:11]} 56. Kg3 {[%clk 0:00:11.8]} 56... Rd3+ {[%clk 0:00:11.9]}
57. Kg4 {[%clk 0:00:10.7]} 57... Rd4+ {[%clk 0:00:13]} 58. Kf3 {[%clk 0:00:11]}
58... Rb3+ {[%clk 0:00:14.3]} 59. Ke2 {[%clk 0:00:12.1]} 59... Rh4 {[%clk
0:00:13.9]} 60. Kf1 {[%clk 0:00:07.5]} 60... Rb2 {[%clk 0:00:08.9]} 61. Kg1
{[%clk 0:00:07.8]} 61... Rg4+ {[%clk 0:00:10.4]} 62. Kf1 {[%clk 0:00:08.6]}
62... Ra4 {[%clk 0:00:10.2]} 63. Nf8 {[%clk 0:00:07.5]} 63... Rf4+ {[%clk
0:00:09.5]} 0-1

[Event "*** MasterClass Titled Tuesday Blitz"]
[Site "Chess.com"]
[Date "2017.09.05"]
[Round "3"]
[White "Grebeniuk-S"]
[Black "H16"]
[Result "1-0"]
[WhiteElo "2393"]
[BlackElo "2298"]
[TimeControl "180+2"]
[EndTime "13:44:46 PDT"]
[Termination "Grebeniuk-S won by resignation"]

1. d4 {[%clk 0:03:01.9]} 1... Nf6 {[%clk 0:03:00.2]} 2. Nf3 {[%clk 0:03:03]}
2... g6 {[%clk 0:03:00.7]} 3. Bg5 {[%clk 0:03:04.3]} 3... Bg7 {[%clk 0:02:57.6]}
4. Nbd2 {[%clk 0:03:05.8]} 4... O-O {[%clk 0:02:56.2]} 5. c3 {[%clk 0:03:06.3]}
5... d5 {[%clk 0:02:42.3]} 6. e3 {[%clk 0:03:04.5]} 6... Nbd7 {[%clk 0:02:21.6]}
7. Be2 {[%clk 0:03:03.7]} 7... c5 {[%clk 0:02:19.5]} 8. b4 {[%clk 0:03:01.7]}
8... b6 {[%clk 0:02:18.6]} 9. O-O {[%clk 0:03:02]} 9... Bb7 {[%clk 0:01:53.6]}
10. Rb1 {[%clk 0:03:02]} 10... Qc8 {[%clk 0:01:51]} 11. bxc5 {[%clk 0:02:53.1]}
11... bxc5 {[%clk 0:01:50.9]} 12. Qa4 {[%clk 0:02:54.2]} 12... Bc6 {[%clk
0:01:39.8]} 13. Qa3 {[%clk 0:02:51.2]} 13... h6 {[%clk 0:01:27.8]} 14. Bh4
{[%clk 0:02:48.9]} 14... a5 {[%clk 0:00:35.1]} 15. Ne5 {[%clk 0:02:20.6]} 15...
g5 {[%clk 0:00:13.5]} 16. Bg3 {[%clk 0:02:18.9]} 16... Nxe5 {[%clk 0:00:14.7]}
17. Bxe5 {[%clk 0:02:20.8]} 17... Nd7 {[%clk 0:00:16.1]} 18. Bxg7 {[%clk
0:01:36.9]} 18... Kxg7 {[%clk 0:00:18.9]} 19. dxc5 {[%clk 0:01:38.6]} 19... Ne5
{[%clk 0:00:10]} 20. c4 {[%clk 0:01:32.6]} 20... Qe6 {[%clk 0:00:07]} 21. cxd5
{[%clk 0:01:21.5]} 21... Qxd5 {[%clk 0:00:08.9]} 22. Nf3 {[%clk 0:01:22.9]}
22... g4 {[%clk 0:00:07.5]} 23. Rfd1 {[%clk 0:01:15.6]} 23... Qe6 {[%clk
0:00:04.1]} 24. Nxe5 {[%clk 0:01:03.1]} 24... Qxe5 {[%clk 0:00:05.1]} 25. Qb2
{[%clk 0:00:47.5]} 25... Qxb2 {[%clk 0:00:03.7]} 26. Rxb2 {[%clk 0:00:49.4]}
26... Rab8 {[%clk 0:00:03.7]} 27. Rb6 {[%clk 0:00:46.5]} 27... Rxb6 {[%clk
0:00:03.1]} 28. cxb6 {[%clk 0:00:48.4]} 28... Rb8 {[%clk 0:00:04.4]} 29. Rb1
{[%clk 0:00:47.3]} 29... f5 {[%clk 0:00:05.8]} 30. f3 {[%clk 0:00:32.3]} 30...
h5 {[%clk 0:00:06]} 31. Kf2 {[%clk 0:00:33.2]} 31... Kf6 {[%clk 0:00:06.6]} 32.
Ba6 {[%clk 0:00:30.1]} 32... gxf3 {[%clk 0:00:06.9]} 33. gxf3 {[%clk 0:00:31]}
33... Ke5 {[%clk 0:00:05.9]} 34. a3 {[%clk 0:00:21.5]} 34... f4 {[%clk
0:00:05.7]} 35. e4 {[%clk 0:00:16.2]} 35... Kd4 {[%clk 0:00:06.1]} 36. b7 {[%clk
0:00:15.9]} 36... e5 {[%clk 0:00:06.3]} 37. Kg2 {[%clk 0:00:11.5]} 37... Bd7
{[%clk 0:00:05.5]} 38. Rb6 {[%clk 0:00:10.4]} 38... Kc5 {[%clk 0:00:05.7]} 39.
Rb2 {[%clk 0:00:08]} 39... Bc6 {[%clk 0:00:04.9]} 40. Kh3 {[%clk 0:00:08.6]}
40... Kd4 {[%clk 0:00:05.8]} 41. Kh4 {[%clk 0:00:09.1]} 41... Ke3 {[%clk
0:00:07]} 42. Rb3+ {[%clk 0:00:10.4]} 42... Kf2 {[%clk 0:00:05.2]} 43. Kxh5
{[%clk 0:00:10.9]} 43... a4 {[%clk 0:00:05.9]} 44. Rb6 {[%clk 0:00:09.1]} 44...
Bd7 {[%clk 0:00:05.6]} 45. Rd6 {[%clk 0:00:08.9]} 45... Bh3 {[%clk 0:00:05.9]}
46. Rd3 {[%clk 0:00:09]} 46... Bg2 {[%clk 0:00:06]} 47. Kg4 {[%clk 0:00:09.3]}
47... Rg8+ {[%clk 0:00:05.8]} 48. Kf5 {[%clk 0:00:10.5]} 48... Bxf3 {[%clk
0:00:06.3]} 49. Kxe5 {[%clk 0:00:07.6]} 49... Be2 {[%clk 0:00:05.3]} 50. Rd2
{[%clk 0:00:08.5]} 50... f3 {[%clk 0:00:06.2]} 51. Kd6 {[%clk 0:00:09.8]} 51...
Ke1 {[%clk 0:00:07.5]} 52. Rxe2+ {[%clk 0:00:10.5]} 52... fxe2 {[%clk
0:00:07.7]} 53. Bxe2 {[%clk 0:00:12.4]} 53... Kxe2 {[%clk 0:00:08.5]} 54. Kc7
{[%clk 0:00:13.6]} 54... Kd3 {[%clk 0:00:07.3]} 55. e5 {[%clk 0:00:14.5]} 55...
Kd4 {[%clk 0:00:09.1]} 56. e6 {[%clk 0:00:15.8]} 56... Ke5 {[%clk 0:00:09.2]}
57. e7 {[%clk 0:00:17.1]} 57... Kf6 {[%clk 0:00:10]} 58. b8=Q {[%clk 0:00:17.9]}
58... Rxb8 {[%clk 0:00:09.8]} 59. Kxb8 {[%clk 0:00:19.8]} 59... Kxe7 {[%clk
0:00:11.8]} 60. Kc7 {[%clk 0:00:21.2]} 60... Kf6 {[%clk 0:00:13.1]} 61. Kb6
{[%clk 0:00:22.6]} 61... Kg5 {[%clk 0:00:15]} 62. Kb5 {[%clk 0:00:24.5]} 62...
Kg4 {[%clk 0:00:16.2]} 63. Kxa4 {[%clk 0:00:26.4]} 63... Kh3 {[%clk 0:00:17.3]}
64. Kb5 {[%clk 0:00:27.9]} 64... Kxh2 {[%clk 0:00:18.8]} 65. a4 {[%clk
0:00:29.8]} 65... Kg3 {[%clk 0:00:19.9]} 66. a5 {[%clk 0:00:31.7]} 66... Kf4
{[%clk 0:00:21.9]} 67. a6 {[%clk 0:00:33.6]} 67... Ke5 {[%clk 0:00:23.7]} 68. a7
{[%clk 0:00:34.9]} 1-0